fUSD/lending_fUSD_20240530
["ID","MTS","AMOUNT","RATE_DAILY","PERIOD"]
[328243401,1717093848137,-12426.57,0.00026431,2]
[328243402,1717093848147,-200.0,0.00026431,2]
[328243403,1717093848156,-445.0,0.0002655,2]
[328243404,1717093848165,-2400.0,0.0002655,2]
[328243405,1717093848174,-322.541,0.0002655,2]
[328243406,1717093848183,-1304.0,0.0002655,2]
[328243407,1717093848192,-1643.0,0.0002655,2]
[328243408,1717093848202,-209.0,0.0002655,2]
[328243409,1717093848211,-817.523,0.0002655,2]
[328243410,1717093848220,-545.0,0.0002655,2]
[328243411,1717093848229,-1784.193,0.0002655,2]
[328243412,1717093848239,-1063.0,0.0002655,2]
[328243413,1717093848248,-6847.23993511,0.00026733,2]
[328243414,1717093848258,-8807.30713,0.00026733,2]
[328243415,1717093848267,-150.0,0.00027,2]
[328243416,1717093848276,-1150.0,0.00027,2]
[328243417,1717093848285,-1692.10419401,0.00027017,2]
[328243418,1717093848295,-805.91709047,0.0002739,2]
[328243419,1717093848304,-150.0,0.00027397,2]
[328243420,1717093848314,-1173.27,0.00027397,2]
[328243421,1717093848323,-15859.33,0.00027397,2]
[328243422,1717093848332,-151.0,0.00027397,7]
[328243423,1717093848342,-964.89,0.000274,2]
[328243424,1717093848351,-964.89,0.000274,2]
[328243425,1717093848361,-964.89,0.000274,2]
[328243426,1717093848370,-964.89,0.000274,2]
[328243427,1717093848379,-964.89,0.000274,2]
[328243428,1717093848391,-150.0,0.00027534,2]
[328243429,1717093848401,-150.0,0.00027671,2]
[328243430,1717093848410,-332.35024246,0.00027686,2]
[328243431,1717093848419,-77.75845206,0.00027686,2]
[328243432,1717093848432,-244.57763684,0.00027686,2]
[328243433,1717093848441,-160.21,0.00027753,2]
[328243434,1717093848451,-1692.10419401,0.0002779,2]
[328243435,1717093848460,-151.01,0.00027801,2]
[328243436,1717093848470,-150.0,0.00027808,2]
[328243437,1717093848479,-150.0,0.00027945,2]
[328243438,1717093848489,-484.60961784,0.00028,2]
[328243439,1717093848500,-331.7991987,0.00028,2]
[328243440,1717093848511,-416.25454569,0.00028,2]
[328243441,1717093863054,172.33,0.00027061,120]
[328243445,1717093980781,-155.0,0.00013786,2]
[328243446,1717093980806,-337.93145394,0.00013787,2]
[328243447,1717093980831,-2991.7692,0.00013787,2]
[328243448,1717093980855,-1207.43906551,0.00013788,2]
[328243449,1717093980887,-155.0,0.00013789,2]
[328243450,1717093980910,-21208.22407592,0.0001379,2]
[328243451,1717093980935,-43944.63620463,0.000138,2]
[328243454,1717094305744,-481.9,0.00010959,2]
[328243455,1717094305766,-535.37597983,0.00011797,2]
[328243456,1717094305790,-4236.95308632,0.00011798,2]
[328243457,1717094305812,-150.0,0.00011799,2]
[328243458,1717094305835,-21489.75729798,0.000118,2]
[328243459,1717094306107,-210.0,0.00012979,2]
[328243460,1717094306128,-1246.52348474,0.00012998,2]
[328243461,1717094306149,-155.19542992,0.00012999,2]
[328243462,1717094316153,-199752.29472121,0.00013,2]
[328243487,1717094957199,-1898.32825842,0.00010958,2]
[328243488,1717094957221,-451.54,0.00010959,2]
[328243489,1717094967601,157.37297207,0.00010859,2]
[328243506,1717095031784,-152.09166539,0.000129,2]
[328243507,1717095031795,-291.35923652,0.000129,2]
[328243508,1717095031806,-37.21624761,0.000129,2]
[328243509,1717095031816,-320.70812004,0.000129,2]
[328243511,1717095031826,-152.48,0.0001299,2]
[328243513,1717095031836,-1071.32307364,0.00013,2]
[328243515,1717095031849,-740.58240107,0.00013,2]
[328243516,1717095031860,-500.53973003,0.00013,2]
[328243517,1717095032088,-14307.37959499,0.00013,2]
[328243518,1717095032099,-70945.73518528,0.00013,2]
[328243519,1717095032110,-14889.37065324,0.00013,2]
[328243520,1717095032148,-27372.50037,0.00013,2]
[328243521,1717095032159,-1047.0,0.00013,2]
[328243522,1717095032170,-4654.44,0.00013,2]
[328243523,1717095032181,-1385.6,0.00013,2]
[328243524,1717095032193,-3361.8399999,0.00013,2]
[328243525,1717095032204,-710982.25408082,0.00013,2]
[328243527,1717095032213,-37714.71110058,0.00013,2]
[328243529,1717095032223,-4015.98,0.00013,2]
[328243531,1717095032232,-328.57548411,0.00013345,2]
[328243532,1717095032241,-621.1765,0.00013789,2]
[328243533,1717095032251,-172.91734175,0.0001379,2]
[328243534,1717095032260,-987.06077994,0.0001379,2]
[328243535,1717095032271,-328.57548411,0.0001379,2]
[328243536,1717095032281,-7858.92673104,0.000138,2]
[328243537,1717095032293,-566.55211337,0.000138,2]
[328243538,1717095032305,-2705.85635096,0.000138,2]
[328243539,1717095032315,-162.10824672,0.000138,2]
[328243540,1717095032324,-175.62765228,0.000138,2]
[328243541,1717095032335,-200.0,0.00013819,2]
[328243542,1717095032346,-152.48,0.00013879,2]
[328243543,1717095032355,-3358.92775004,0.00013887,2]
[328243544,1717095032367,-2268.68775,0.00013887,2]
[328243545,1717095032380,-4203.55193141,0.00013887,2]
[328243546,1717095032390,-2687.42070363,0.00013887,2]
[328243547,1717095032402,-995.87545876,0.00013887,2]
[328243548,1717095034076,422.91996951,0.00012408,2]
[328243550,1717095037641,-118.73003049,0.00012408,2]
[328243551,1717095037651,-2824.24577899,0.00013887,2]
[328243553,1717095037661,-56.15219052,0.00013888,2]
[328243554,1717095037864,-263.8,0.00013888,2]
[328243555,1717095037876,-210.49092432,0.00013888,2]
[328243556,1717095037885,-254.022304,0.00013888,2]
[328243557,1717095037898,-3016.22929482,0.00013888,2]
[328243558,1717095037910,-756.21056318,0.00013888,2]
[328243572,1717095040569,-6133.55332092,0.00013888,2]
[328243573,1717095040580,-499.99,0.00013888,2]
[328243574,1717095040591,-39223.2628,0.00013889,2]
[328243575,1717095040600,-1000.0,0.00013889,2]
[328243576,1717095040610,-245000.0,0.00013889,2]
[328243577,1717095040619,-173.14755549,0.0001389,2]
[328243578,1717095040629,-5648.67814348,0.00013902,2]
[328243579,1717095040639,-152.48,0.0001399,2]
[328243580,1717095040648,-152.48,0.0001399,2]
[328243581,1717095040658,-152.48,0.0001399,2]
[328243582,1717095040668,-152.48,0.0001399,2]
[328243583,1717095040678,-152.48,0.0001399,2]
[328243584,1717095040687,-152.48,0.0001399,2]
[328243585,1717095040697,-152.48,0.0001399,2]
[328243586,1717095040706,-409.25308853,0.00013998,2]
[328243587,1717095040715,-284.87517451,0.00013999,2]
[328243588,1717095040725,-150.0,0.00013999,2]
[328243589,1717095040734,-88123.61224698,0.00014,2]
[328243590,1717095040746,-2495.58714316,0.00014,2]
[328243591,1717095040758,-11846.33584997,0.00014,2]
[328243592,1717095040771,-776906.91210881,0.00014,2]
[328243593,1717095040782,-600.5783032,0.00014,2]
[328243594,1717095040844,-1015.44652551,0.00014,2]
[328243595,1717095040855,-2930.325011,0.00014,2]
[328243596,1717095040866,-359.38098,0.00014,2]
[328243597,1717095041708,-500.0,0.00014,2]
[328243599,1717095041719,-630.6594,0.00014,2]
[328243601,1717095042745,-12854.70961971,0.00014,2]
[328243604,1717095042756,-1623.59927993,0.00014,2]
[328243606,1717095042771,-1747.575,0.00014,2]
[328243624,1717095042943,-392.29490377,0.00014,2]
[328243636,1717095043165,-6929.4,0.00014,2]
[328243637,1717095043177,-679321.36216409,0.00014,2]
[328243638,1717095043189,-1453.73541446,0.00014,2]
[328243639,1717095043200,-9377.58019019,0.00014,2]
[328243640,1717095043288,-11322.30067832,0.00014,2]
[328243644,1717095046197,-6112.69279021,0.00014,2]
[328243645,1717095046209,-469.65,0.00014,2]
[328243646,1717095046220,-1039.56,0.00014,2]
[328243647,1717095046231,-2440.86548356,0.00014,2]
[328243648,1717095046242,-3210.5,0.00014,2]
[328243649,1717095046253,-757.25445626,0.00014,2]
[328243650,1717095046264,-19409.98507011,0.00014,2]
[328243651,1717095046276,-750.52233814,0.00014,2]
[328243652,1717095046287,-389.63124367,0.00014,2]
[328243653,1717095046298,-640.7472672,0.00014,2]
[328243654,1717095046312,-3920.780729,0.00014,2]
[328243655,1717095046323,-275.919,0.00014,2]
[328243656,1717095046334,-475.24593431,0.00014,2]
[328243657,1717095046344,-465.45006,0.00014,2]
[328243658,1717095046356,-1020.83631643,0.00014,2]
[328243659,1717095046367,-378.79104645,0.00014,2]
[328243660,1717095046404,-46427.70561764,0.00014,2]
[328243699,1717096157111,-481.15128798,0.00010674,2]
[328243700,1717096157132,-624.63301407,0.00010675,2]
[328243701,1717096157154,-152.55,0.00010677,2]
[328243702,1717096157175,-150.0,0.00011501,2]
[328243703,1717096157197,-2551.70809795,0.00011502,2]
[328243704,1717096159156,-6907.07840064,0.00011502,2]
[328243711,1717096232092,-339.34,0.00011608,2]
[328243713,1717096232101,-538.34,0.00011905,2]
[328243715,1717096232111,-11405.3093,0.000129,2]
[328243718,1717096232119,-1895.25,0.00013014,2]
[328243719,1717096232129,-250.0,0.00013145,2]
[328243720,1717096232139,-197.42684078,0.0001329,2]
[328243721,1717096232148,-255.63381381,0.00013298,2]
[328243722,1717096232157,-624.35215471,0.00013298,2]
[328243723,1717096232166,-192.7333,0.00013298,2]
[328243724,1717096232175,-3213.61700735,0.00013298,2]
[328243725,1717096232184,-2621.73735045,0.00013299,2]
[328243726,1717096232193,-499.99,0.00013299,2]
[328243727,1717096232202,-956.39580577,0.000133,2]
[328243728,1717096232211,-46671.01,0.000133,2]
[328243729,1717096232221,-1245.38,0.00013489,2]
[328243730,1717096232232,-21891.47,0.00013503,2]
[328243731,1717096232242,-415.93,0.00013633,2]
[328243732,1717096232251,-168.02,0.00013633,2]
[328243733,1717096232261,-200.0,0.000138,5]
[328243734,1717096232272,-250.0,0.00013869,2]
[328243735,1717096232282,-612.3744,0.000139,2]
[328243736,1717096232292,-234.24003402,0.000139,2]
[328243737,1717096232302,-280.84294291,0.000139,2]
[328243738,1717096232312,-500.0,0.000139,5]
[328243739,1717096232323,-170.90682762,0.000139,2]
[328243740,1717096232332,-301.8747467,0.000139,2]
[328243741,1717096232343,-387.34365317,0.00013906,2]
[328243742,1717096232353,-177.85156013,0.0001399,2]
[328243743,1717096232363,-152.1,0.0001399,2]
[328243744,1717096232378,-152.1,0.0001399,2]
[328243746,1717096232388,-226.12997292,0.00013998,2]
[328243747,1717096232397,-230413.28724299,0.00014,2]
[328243748,1717096232410,-778.63384695,0.00014,2]
[328243749,1717096232422,-201807.51264409,0.00014,2]
[328243750,1717096232433,-604.135,0.00014,2]
[328243751,1717096232444,-8698.57941669,0.00014,2]
[328243752,1717096232458,-2015.29501095,0.00014,2]
[328243753,1717096232471,-3655.23039409,0.00014,2]
[328243754,1717096232483,-10126.54476,0.00014,2]
[328243755,1717096232494,-538.88,0.00014,2]
[328243756,1717096232505,-340.5675,0.00014,2]
[328243757,1717096232516,-6231.32181918,0.00014,2]
[328243759,1717096232527,-3252.16784281,0.00014,2]
[328243761,1717096232539,-2744.48706656,0.00014,2]
[328243764,1717096232553,-691.95,0.00014,2]
[328243766,1717096232564,-2253.71037969,0.00014,2]
[328243768,1717096232576,-5082.4753998,0.00014,2]
[328243770,1717096232587,-1309.19781579,0.00014,2]
[328243773,1717096232671,-282.85,0.0001399,3]
[328243774,1717096232683,-717.21,0.00014,2]
[328243775,1717096232696,-4125.0000005,0.00014,2]
[328243776,1717096232708,-4512.90651215,0.00014,2]
[328243777,1717096232720,-13534.50689137,0.00014,2]
[328243778,1717096232732,-675.675,0.00014,2]
[328243779,1717096232744,-20883.84140123,0.00014,2]
[328243780,1717096232757,-2131.10060352,0.00014,2]
[328243783,1717096238229,-250.0,0.00013667,2]
[328243784,1717096238239,-777.62639995,0.00014,2]
[328243785,1717096238255,-5664.6008162,0.00014,2]
[328243787,1717096238267,-1698.85000003,0.00014,2]
[328243788,1717096238278,-3536.77635841,0.00014,2]
[328243789,1717096238290,-434716.76368276,0.00014,2]
[328243790,1717096238301,-14410.62845724,0.00014,2]
[328243791,1717096238315,-851.8754924,0.00014,2]
[328243792,1717096239845,-67500.0,0.00014,2]
[328243802,1717096240916,-1626.31872207,0.00014,2]
[328243804,1717096240927,-376.08080662,0.00014,2]
[328243806,1717096240939,-3040.35176,0.00014,2]
[328243807,1717096242073,-1767.23433332,0.000139,2]
[328243808,1717096242084,-1009.71667059,0.000139,2]
[328243809,1717096242096,-340.0090999,0.000139,2]
[328243810,1717096242108,-953.445,0.000139,2]
[328243811,1717096242119,-3429.59489619,0.000139,2]
[328243812,1717096242129,-135886.74783972,0.00014,2]
[328243813,1717096242139,-1952.39306,0.00014,2]
[328243814,1717096242148,-538.34,0.00014169,2]
[328243815,1717096242158,-168.02,0.00014344,2]
[328243816,1717096242167,-197.62,0.00014618,2]
[328243817,1717096242176,-325.39983263,0.00015,2]
[328243818,1717096242185,-188.14798877,0.00015,2]
[328243819,1717096242194,-151.01,0.00015068,2]
[328243820,1717096242203,-565.7,0.0001536,3]
[328243821,1717096242212,-1000.0,0.00015668,2]
[328243822,1717096242222,-152.55,0.00016015,2]
[328243823,1717096242231,-1245.38,0.00016228,2]
[328243824,1717096242240,-538.34,0.00016433,2]
[328243825,1717096242250,-161.02,0.00016492,2]
[328243826,1717096242259,-161.02,0.00016506,2]
[328243827,1717096242268,-161.02,0.0001652,2]
[328243828,1717096242277,-161.02,0.00016534,2]
[328243829,1717096242287,-161.02,0.00016547,2]
[328243830,1717096242296,-161.02,0.00016561,2]
[328243831,1717096242305,-161.02,0.00016575,2]
[328243832,1717096242314,-280.84294287,0.00016657,2]
[328243833,1717096242324,-258.97242969,0.00017259,2]
[328243834,1717096242333,-534.81598618,0.00017259,2]
[328243835,1717096242343,-656.39657241,0.00017259,2]
[328243836,1717096242353,-1000.0,0.00017627,2]
[328243837,1717096242362,-804.89062484,0.00018,2]
[328243838,1717096242371,-538.34,0.00018697,2]
[328243839,1717096242387,-1245.38,0.00018968,2]
[328243840,1717096242396,-1952.39307,0.00019,2]
[328243841,1717096242406,-500.0,0.00019178,2]
[328243842,1717096242415,-222.2461091,0.00019178,2]
[328243843,1717096242425,-500.0,0.00019178,2]
[328243844,1717096242435,-481.21737942,0.00019178,2]
[328243845,1717096242443,-500.0,0.00019178,2]
[328243846,1717096242453,-500.0,0.00019178,2]
[328243847,1717096242464,-500.0,0.00019178,2]
[328243848,1717096242475,-447.04048883,0.00019178,2]
[328243849,1717096242484,-500.0,0.00019178,2]
[328243850,1717096242493,-500.0,0.00019178,2]
[328243851,1717096242503,-500.0,0.00019178,2]
[328243852,1717096242512,-500.0,0.00019178,2]
[328243853,1717096242521,-500.0,0.00019178,2]
[328243854,1717096242530,-184.91473672,0.00019178,2]
[328243855,1717096242539,-285.66883181,0.00019178,2]
[328243856,1717096242548,-280.84294287,0.00019414,2]
[328243857,1717096242558,-1000.0,0.00019586,2]
[328243858,1717096242567,-1776.43097931,0.0002,2]
[328243859,1717096242577,-863.06900647,0.0002,2]
[328243860,1717096242587,-634.50759008,0.0002,2]
[328243861,1717096242596,-170.90682761,0.00020333,2]
[328243862,1717096242605,-464.73981448,0.0002084,2]
[328243863,1717096242617,-598.26018552,0.0002084,2]
[328243864,1717096242627,-538.34,0.00020961,2]
[328243865,1717096242637,-958.82765718,0.00021544,2]
[328243866,1717096242648,-41.17234282,0.00021544,2]
[328243867,1717096242658,-170.93,0.00021918,2]
[328243868,1717096242667,-947.27,0.00021918,2]
[328243869,1717096242677,-250.0,0.00021918,2]
[328243870,1717096242686,-173.95,0.00021918,2]
[328243871,1717096242695,-316.67765717,0.00022,2]
[328243872,1717096242707,-379.9865,0.00022,2]
[328243873,1717096243028,-5007.813927,0.0001393,2]
[328243875,1717096243038,-8315.63651492,0.00022,2]
[328243877,1717096243047,-280.84294287,0.00022171,2]
[328243879,1717096243057,-155.0,0.00023,2]
[328243882,1717096243066,-815.26544566,0.00023,2]
[328243888,1717096243112,-14.58893785,0.00023,2]
[328243890,1717096243123,-220.14561649,0.00023,2]
[328243893,1717096243132,-1646.0,0.0002302,2]
[328243896,1717096243143,-43.05438349,0.0002302,2]
[328243909,1717096243345,-2225.25989534,0.00011502,2]
[328243910,1717096243355,-848.59,0.0001399,3]
[328243911,1717096243364,-1221.94561651,0.0002302,2]
[328243912,1717096243374,-614.0,0.0002302,2]
[328243913,1717096243388,-440.0,0.0002302,2]
[328243914,1717096243398,-1224.0,0.0002302,2]
[328243915,1717096243407,-2400.0,0.0002302,2]
[328243916,1717096243416,-957.408,0.0002302,2]
[328243917,1717096243426,-545.0,0.0002302,2]
[328243918,1717096243435,-538.34,0.00023225,2]
[328243919,1717096243444,-1000.0,0.00023503,2]
[328243920,1717096243455,-301.87474669,0.0002355,2]
[328243921,1717096243464,-1952.39307,0.00024,2]
[328243922,1717096243474,-180.0,0.0002423,2]
[328243923,1717096243483,-267.88,0.00024384,2]
[328243924,1717096243493,-3214.90760526,0.00024798,2]
[328243925,1717096243502,-3214.90760526,0.00024798,2]
[328243926,1717096243511,-3214.90760526,0.00024798,2]
[328243927,1717096243521,-3214.90760526,0.00024798,2]
[328243928,1717096243530,-3214.90760526,0.00024798,2]
[328243929,1717096243538,-3214.90760526,0.00024798,2]
[328243930,1717096243548,-9999.999999,0.00024798,2]
[328243931,1717096243557,-48620.26953468,0.00024799,2]
[328243932,1717096243566,-2659.09048574,0.00024799,2]
[328243933,1717096243575,-2659.09048565,0.00024799,2]
[328243934,1717096243584,-2659.09048565,0.00024799,2]
[328243935,1717096243593,-2659.09048565,0.00024799,2]
[328243936,1717096243602,-2659.09048565,0.00024799,2]
[328243937,1717096243612,-2659.09048565,0.00024799,2]
[328243938,1717096243621,-6781.62469365,0.000249,2]
[328243939,1717096243630,-280.84294287,0.00024929,2]
[328243940,1717096243642,-1100.0,0.00025,2]
[328243941,1717096243651,-1000.0,0.00025205,2]
[328243942,1717096243660,-538.34,0.00025489,2]
[328243943,1717096243669,-2055.0,0.000257,4]
[328243944,1717096243678,-500.0,0.000257,2]
[328243945,1717096243687,-421.08,0.00025828,2]
[328243946,1717096243696,-704.22,0.00025828,2]
[328243947,1717096243705,-318.25,0.00025828,2]
[328243948,1717096243715,-421.43,0.00025828,2]
[328243949,1717096243724,-1330.788,0.0002602,2]
[328243950,1717096243733,-1265.0,0.0002602,2]
[328243951,1717096243743,-440.0,0.0002602,2]
[328243952,1717096243751,-1224.0,0.0002602,2]
[328243953,1717096243761,-2039.308,0.0002602,2]
[328243954,1717096243770,-545.0,0.0002602,2]
[328243955,1717096243779,-800.0,0.00026082,2]
[328243956,1717096243788,-800.0,0.00026082,2]
[328243957,1717096243797,-800.0,0.00026082,2]
[328243958,1717096243806,-800.0,0.00026082,2]
[328243959,1717096243816,-800.0,0.00026082,2]
[328243960,1717096243825,-800.0,0.00026082,2]
[328243962,1717096243834,-3214.90760526,0.00026767,2]
[328243963,1717096243843,-2659.09048565,0.00026767,2]
[328243964,1717096243852,-170.90682761,0.00026767,2]
[328243965,1717096243861,-1150.0,0.00027,2]
[328243966,1717096243871,-150.0,0.00027,2]
[328243967,1717096243880,-154.999998,0.0002705,2]
[328243969,1717096243889,-152.1,0.00027051,2]
[328243971,1717096243899,-500.0,0.00027061,2]
[328243973,1717096243908,-37528.3823002,0.00027061,2]
[328243975,1717096243917,-1000.0,0.000273,2]
[328243976,1717096243926,-805.42124353,0.0002739,2]
[328243977,1717096243935,-152.32799881,0.00027397,2]
[328243978,1717096243944,-1073.82,0.000274,2]
[328243979,1717096243954,-1073.82,0.000274,2]
[328243980,1717096243963,-1073.82,0.000274,2]
[328243981,1717096243973,-1073.82,0.000274,2]
[328243982,1717096243982,-1073.82,0.000274,2]
[328243983,1717096243991,-1073.82,0.000274,2]
[328243984,1717096244000,-1073.82,0.000274,2]
[328243985,1717096244009,-1000.0,0.000275,2]
[328243986,1717096244018,-448.0,0.000275,2]
[328243987,1717096244027,-708.0,0.000275,2]
[328243988,1717096244036,-280.84294287,0.00027686,2]
[328243989,1717096244045,-275.24508496,0.00027719,2]
[328243990,1717096244054,-538.34,0.00027753,2]
[328243991,1717096244063,-500.0,0.00027776,2]
[328243992,1717096244072,-441.4904847,0.0002799,2]
[328243993,1717096244081,-150.01,0.00027999,2]
[328243994,1717096244090,-4844.71392728,0.00027999,2]
[328243995,1717096244099,-2389.2910004,0.00027999,2]
[328243996,1717096244108,-7454.3264058,0.00027999,2]
[328243997,1717096244117,-7814.8789987,0.00027999,2]
[328243998,1717096244126,-43893.8241687,0.00027999,2]
[328243999,1717096244136,-1821.49577145,0.00028,2]
[328244000,1717096244146,-150.0,0.00028,5]
[328244001,1717096244156,-1000.0,0.00028,2]
[328244002,1717096244165,-300.0,0.000282,2]
[328244003,1717096244174,-300.0,0.00028571,2]
[328244004,1717096244184,-1073.82,0.0002879,2]
[328244005,1717096244193,-11635.67505099,0.000288,2]
[328244006,1717096244202,-800.0,0.000289,10]
[328244007,1717096244211,-3214.90760526,0.00028911,2]
[328244008,1717096244220,-2659.09048565,0.00028911,2]
[328244009,1717096244230,-300.0,0.00028942,2]
[328244010,1717096244239,-155.0,0.00029,7]
[328244011,1717096244249,-1483.6790455,0.00029,2]
[328244012,1717096244258,-5000.0,0.00029,2]
[328244013,1717096244267,-1000.0,0.00029,5]
[328244014,1717096244277,-2051.96615826,0.00029,2]
[328244015,1717096244286,-11657.37927508,0.00029,2]
[328244016,1717096244295,-1200.0,0.00029,2]
[328244017,1717096244304,-1952.39306,0.00029,2]
[328244018,1717096244314,-263.62698608,0.00029,2]
[328244019,1717096244323,-1265.0,0.0002902,2]
[328244020,1717096244333,-288.0,0.0002902,2]
[328244021,1717096244342,-545.0,0.0002902,2]
[328244022,1717096244351,-74620.98729047,0.0002913,10]
[328244023,1717096244361,-300.0,0.00029313,2]
[328244024,1717096244371,-6459.842787,0.00029422,2]
[328244025,1717096244382,-4306.561858,0.00029422,2]
[328244026,1717096244393,-199.457985,0.00029422,2]
[328244027,1717096244402,-2786.506996,0.000295,2]
[328244028,1717096244412,-13375.233581,0.000295,2]
[328244029,1717096244423,-1066.139759,0.000295,2]
[328244030,1717096244432,-2000.0,0.000296,2]
[328244031,1717096244442,-2354.96819,0.0002961,2]
[328244032,1717096244451,-452.42025595,0.00029635,2]
[328244033,1717096244462,-300.0,0.00029684,2]
[328244034,1717096244471,-6459.842787,0.00029789,2]
[328244035,1717096244480,-4306.561858,0.00029789,2]
[328244036,1717096244490,-177.85156013,0.0002979,2]
[328244037,1717096244499,-4179.760494,0.000298,2]
[328244038,1717096244509,-20062.850372,0.000298,2]
[328244039,1717096244518,-1599.209639,0.000298,2]
[328244040,1717096244527,-2007.84808752,0.000299,2]
[328244041,1717096244536,-1100.0,0.000299,10]
[328244042,1717096244545,-1073.82,0.0002997,2]
[328244043,1717096244555,-5173.76119,0.0002998,2]
[328244044,1717096244565,-2573.903444,0.0002998,2]
[328244045,1717096244573,-18633.044255,0.0002998,2]
[328244046,1717096244583,-152.1,0.0002999,2]
[328244047,1717096244591,-152.1,0.0002999,2]
[328244048,1717096244601,-1073.82,0.0002999,2]
[328244049,1717096244611,-152.1,0.0002999,2]
[328244050,1717096244620,-503679.48535257,0.0003,13]
[328244051,1717096244629,-566.98,0.0003,2]
[328244052,1717096244638,-500.0,0.0003,2]
[328244053,1717096244648,-1000.0,0.0003,5]
[328244054,1717096244658,-566.53,0.0003,8]
[328244055,1717096244667,-5573.013992,0.0003,2]
[328244056,1717096244676,-26750.467163,0.0003,2]
[328244057,1717096244685,-55865.85370129,0.0003,2]
[328244058,1717096245434,-66890.63179509,0.0003,2]
[328244059,1717096245446,-839.50068266,0.0003,2]
[328244060,1717096245459,-1630.29359749,0.0003,2]
[328244061,1717096245471,-6250.7576414,0.0003,2]
[328244062,1717096245482,-11980.70100004,0.0003,2]
[328244063,1717096245494,-4424.70324299,0.0003,2]
[328244068,1717096246181,-31471.5,0.0003,2]
[328244069,1717096246193,-1011.23426476,0.0003,2]
[328244070,1717096246207,-2453.25122604,0.0003,2]
[328244071,1717096246219,-264.208,0.0003,2]
[328244072,1717096246230,-3226.2,0.0003,2]
[328244073,1717096246242,-3115.34561217,0.0003,2]
[328244074,1717096246253,-5822.73468714,0.0003,2]
[328244075,1717096246265,-261.90998834,0.0003,2]
[328244076,1717096246277,-3824.75128088,0.0003,2]
[328244077,1717096246288,-459.4508895,0.0003,2]
[328244078,1717096246299,-346.62,0.0003,2]
[328244079,1717096246564,-949.65,0.0003,2]
[328244081,1717096246575,-378.5,0.0003,2]
[328244084,1717096246587,-647.8,0.0003,2]
[328244086,1717096246598,-3072.45991444,0.0003,2]
[328244088,1717096246608,-4852.39553538,0.0003,2]
[328244824,1717096558831,163.04,0.00028107,120]
[328244826,1717097148132,-158.02659812,0.00013899,2]
[328244827,1717097148152,-657.62324322,0.000139,2]
[328244832,1717097355168,-237.72200736,0.00013896,2]
[328244833,1717097355188,-57.99733264,0.00013896,2]
[328244836,1717097373111,-423.15395534,0.00013896,2]
[328244837,1717097373135,-5572.40323607,0.00013897,2]
[328244838,1717097373155,-150.0,0.00013899,2]
[328244839,1717097373175,-4274.55928743,0.00013899,2]
[328244840,1717097373194,-379.61315678,0.000139,2]
[328244841,1717097373213,-16883.4515,0.000139,2]
[328244842,1717097373233,-1140.8114,0.000139,2]
[328244843,1717097373258,-3440.802,0.000139,2]
[328244844,1717097373279,-500.0,0.000139,2]
[328244845,1717097373302,-155.0,0.00015,2]
[328244846,1717097373325,-211.40351695,0.000185,2]
[328244847,1717097373347,-634.50759008,0.0002,2]
[328244848,1717097374051,2366.22973263,0.00013895,2]
[328244852,1717097401547,863.06900647,0.0002,2]
[328244867,1717097432234,-154.77,0.00022688,2]
[328244868,1717097432244,-545.0,0.0002269,2]
[328244869,1717097432254,-499.99,0.00024512,2]
[328244870,1717097432263,-334.25,0.00025003,2]
[328244871,1717097432272,-309.0,0.0002569,2]
[328244872,1717097432282,-490.0,0.000259,4]
[328244873,1717097432291,-716.86,0.00026431,2]
[328244874,1717097432301,-500.0,0.00026431,2]